fUSD/lending_fUSD_20240505
["ID","MTS","AMOUNT","RATE_DAILY","PERIOD"]
[326459905,1714939852352,-159.41672022,0.00030133,2]
[326459906,1714939852361,-463.1129103,0.00030136,4]
[326459907,1714939852370,-500.0,0.00030136,4]
[326459908,1714939852380,-500.0,0.00030136,2]
[326459909,1714939852390,-500.0,0.00030136,2]
[326459910,1714939852400,-785.19,0.00030136,4]
[326459911,1714939852409,-500.0,0.00030136,4]
[326459912,1714939852418,-1089.4,0.00030136,4]
[326459913,1714939852427,-155.39898614,0.00030136,4]
[326459914,1714939852437,-500.0,0.00030136,4]
[326459915,1714939852446,-781.41,0.00030136,4]
[326459916,1714939852455,-504.65,0.00030136,4]
[326459917,1714939852464,-298.39339498,0.00030136,4]
[326459918,1714939852474,-500.0,0.00030136,4]
[326459919,1714939852483,-500.0,0.00030136,4]
[326459920,1714939852493,-944.86,0.00030136,4]
[326459921,1714939852502,-607.21,0.00030136,4]
[326459922,1714939852511,-857.38,0.00030136,4]
[326459923,1714939852520,-592.43,0.00030136,4]
[326459924,1714939852530,-780.04,0.00030136,4]
[326459925,1714939852539,-500.0,0.00030136,4]
[326459926,1714939852548,-656.21,0.00030136,4]
[326459927,1714939852558,-898.81,0.00030136,4]
[326459928,1714939852567,-504.01951418,0.00030136,4]
[326459929,1714939852576,-500.0,0.00030136,4]
[326459930,1714939852585,-500.0,0.00030136,4]
[326459931,1714939852594,-1001.52864807,0.00030136,2]
[326459932,1714939852604,-530.45,0.00030136,4]
[326459933,1714939852613,-500.0,0.00030136,4]
[326459934,1714939852622,-525.15,0.00030136,4]
[326459935,1714939852632,-500.0,0.00030136,4]
[326459936,1714939852642,-500.0,0.00030136,4]
[326459937,1714939852651,-500.0,0.00030136,4]
[326459938,1714939852660,-500.0,0.00030136,4]
[326459939,1714939852670,-500.0,0.00030136,4]
[326459940,1714939852680,-491.15413569,0.00030136,4]
[326459941,1714939852896,-1522.67,0.00030136,4]
[326459942,1714939852905,-224.14524353,0.00030136,4]
[326459943,1714939852915,-500.0,0.00030136,4]
[326459944,1714939852924,-448.92131699,0.00030136,4]
[326459945,1714939852933,-500.0,0.00030136,4]
[326459946,1714939852942,-500.0,0.00030136,4]
[326459947,1714939852951,-500.0,0.00030136,4]
[326459948,1714939852960,-500.0,0.00030136,4]
[326459949,1714939852969,-500.0,0.00030136,4]
[326459950,1714939852978,-500.0,0.00030136,4]
[326459951,1714939852987,-500.0,0.00030136,4]
[326459952,1714939852997,-578.44,0.00030136,4]
[326459953,1714939853006,-500.0,0.00030136,4]
[326459954,1714939853015,-651.21,0.00030136,4]
[326459955,1714939853025,-640.54209551,0.00030136,4]
[326459956,1714939853038,-500.0,0.00030136,4]
[326459957,1714939853047,-500.0,0.00030136,4]
[326459958,1714939853058,-1440.61,0.00030136,4]
[326459959,1714939853068,-686.36,0.00030136,4]
[326459960,1714939853078,-500.0,0.00030136,4]
[326459961,1714939853088,-541.17,0.00030136,4]
[326459962,1714939853098,-500.0,0.00030136,4]
[326459963,1714939853107,-500.0,0.00030136,4]
[326459964,1714939853118,-500.0,0.00030136,4]
[326459965,1714939853127,-500.0,0.00030136,4]
[326459966,1714939853137,-500.0,0.00030136,4]
[326459967,1714939853146,-500.0,0.00030136,4]
[326459968,1714939853155,-921.11,0.00030136,4]
[326459969,1714939853164,-834.17,0.00030136,4]
[326459970,1714939853174,-155.26916306,0.00030136,4]
[326459971,1714939853185,-580.24,0.00030136,4]
[326459972,1714939853196,-1498.21,0.00030136,4]
[326459973,1714939853209,-500.0,0.00030136,4]
[326459974,1714939853218,-591.74,0.00030136,4]
[326459975,1714939853228,-500.0,0.00030136,4]
[326459976,1714939853239,-500.0,0.00030136,4]
[326459977,1714939853252,-500.0,0.00030136,4]
[326459978,1714939853261,-511.53288083,0.00030136,4]
[326459979,1714939853270,-500.0,0.00030136,4]
[326459980,1714939853281,-500.0,0.00030136,4]
[326459981,1714939853292,-500.0,0.00030136,4]
[326459982,1714939853303,-961.2,0.00030136,4]
[326459983,1714939853312,-500.0,0.00030136,4]
[326459984,1714939853322,-500.0,0.00030136,2]
[326459985,1714939853331,-500.0,0.00030136,4]
[326459986,1714939853340,-500.64330753,0.00030136,4]
[326459987,1714939853350,-500.0,0.00030136,4]
[326459988,1714939853359,-500.06939146,0.00030136,4]
[326459989,1714939853368,-500.0,0.00030136,2]
[326459990,1714939853378,-500.0,0.00030136,2]
[326459991,1714939853388,-500.0,0.00030136,2]
[326459992,1714939853398,-500.0,0.00030136,2]
[326459993,1714939853408,-500.0,0.00030136,2]
[326459994,1714939853418,-500.0,0.00030136,2]
[326459995,1714939853427,-500.0,0.00030136,2]
[326459996,1714939853436,-500.0,0.00030136,4]
[326459997,1714939853446,-500.0,0.00030136,2]
[326459998,1714939853455,-502.08621512,0.00030136,4]
[326459999,1714939853464,-423.66021355,0.00030136,2]
[326460000,1714939853474,-664.02,0.00030136,4]
[326460001,1714939853484,-500.85526181,0.00030136,4]
[326460002,1714939853493,-773.32,0.00030136,4]
[326460003,1714939853503,-500.0,0.00030136,4]
[326460004,1714939853513,-1220.88,0.00030136,4]
[326460005,1714939853522,-500.0,0.00030136,4]
[326460006,1714939853532,-1250.8,0.00030136,4]
[326460007,1714939853541,-500.81885296,0.00030136,4]
[326460008,1714939853550,-500.0,0.00030136,4]
[326460009,1714939853559,-989.35,0.00030136,4]
[326460010,1714939853569,-500.0,0.00030136,4]
[326460011,1714939853580,-500.0,0.00030136,4]
[326460012,1714939853590,-500.0,0.00030136,4]
[326460013,1714939853599,-500.0,0.00030136,4]
[326460014,1714939853608,-500.0,0.00030136,4]
[326460015,1714939853618,-500.0,0.00030136,4]
[326460016,1714939853627,-889.8,0.00030136,4]
[326460017,1714939853637,-500.93825896,0.00030136,4]
[326460018,1714939853646,-500.0,0.00030136,4]
[326460019,1714939853655,-500.0,0.00030136,4]
[326460020,1714939853664,-500.0,0.00030136,4]
[326460021,1714939853675,-500.0,0.00030136,4]
[326460022,1714939853685,-500.86863161,0.00030136,4]
[326460023,1714939853695,-500.0,0.00030136,4]
[326460024,1714939853707,-559.99,0.00030136,4]
[326460025,1714939853717,-500.0,0.00030136,4]
[326460026,1714939853726,-500.0,0.00030136,4]
[326460027,1714939853735,-774.78,0.00030136,4]
[326460028,1714939853744,-500.14,0.00030136,4]
[326460029,1714939853754,-314.02588717,0.00030136,4]
[326460030,1714939853763,-500.0,0.00030136,4]
[326460031,1714939853772,-500.0,0.00030136,4]
[326460032,1714939853784,-500.0,0.00030136,4]
[326460033,1714939853794,-500.0,0.00030136,4]
[326460034,1714939853803,-500.0,0.00030136,4]
[326460035,1714939853812,-766.09,0.00030136,4]
[326460036,1714939853821,-500.0,0.00030136,4]
[326460037,1714939853830,-500.0,0.00030136,4]
[326460038,1714939853839,-500.0,0.00030136,4]
[326460039,1714939853848,-512.43254948,0.00030136,4]
[326460040,1714939853858,-1206.19,0.00030136,4]
[326460041,1714939853867,-538.06,0.00030136,4]
[326460042,1714939853876,-1112.61,0.00030136,4]
[326460043,1714939853886,-500.0,0.00030136,4]
[326460044,1714939853895,-1513.91,0.00030136,4]
[326460045,1714939853904,-1152.14,0.00030136,4]
[326460046,1714939853914,-155.14972805,0.00030136,4]
[326460047,1714939853922,-500.0,0.00030136,4]
[326460048,1714939853931,-608.2,0.00030136,4]
[326460049,1714939853940,-500.0,0.00030136,4]
[326460050,1714939853949,-620.27,0.00030136,4]
[326460051,1714939853958,-1641.63,0.00030136,4]
[326460052,1714939853968,-963.78,0.00030136,4]
[326460053,1714939853977,-1001.8,0.00030136,4]
[326460054,1714939853986,-500.80729896,0.00030136,4]
[326460055,1714939853996,-430.31938292,0.00030136,4]
[326460056,1714939854005,-503.21584926,0.00030136,4]
[326460057,1714939854015,-513.82,0.00030136,4]
[326460058,1714939854024,-500.0,0.00030136,4]
[326460059,1714939854033,-500.0,0.00030136,4]
[326460060,1714939854042,-500.0,0.00030136,4]
[326460061,1714939854052,-500.0,0.00030136,4]
[326460062,1714939854061,-500.0,0.00030136,4]
[326460063,1714939854070,-500.0,0.00030136,4]
[326460064,1714939854079,-410.01825401,0.00030136,4]
[326460065,1714939854089,-500.0,0.00030136,4]
[326460066,1714939854098,-500.0,0.00030136,4]
[326460067,1714939854107,-500.0,0.00030136,4]
[326460068,1714939854117,-500.0,0.00030136,4]
[326460069,1714939854126,-500.0,0.00030136,4]
[326460070,1714939854135,-587.42,0.00030136,4]
[326460071,1714939854145,-1349.37,0.00030136,4]
[326460072,1714939854154,-500.0,0.00030136,4]
[326460073,1714939854163,-500.0,0.00030136,4]
[326460074,1714939854172,-500.0,0.00030136,4]
[326460075,1714939854181,-1486.98,0.00030136,4]
[326460076,1714939854191,-500.0,0.00030136,4]
[326460077,1714939854202,-503.64143127,0.00030136,4]
[326460078,1714939854215,-801.86,0.00030136,4]
[326460079,1714939854224,-500.31222532,0.00030136,4]
[326460080,1714939854233,-691.9,0.00030136,4]
[326460081,1714939854243,-500.0,0.00030136,4]
[326460082,1714939854253,-500.0,0.00030136,4]
[326460083,1714939854262,-500.0,0.00030136,4]
[326460084,1714939854271,-922.5,0.00030136,4]
[326460085,1714939854281,-500.0,0.00030136,4]
[326460086,1714939854291,-500.0,0.00030136,4]
[326460087,1714939854300,-500.0,0.00030136,4]
[326460088,1714939854309,-500.0,0.00030136,5]
[326460089,1714939854319,-500.0,0.00030136,6]
[326460090,1714939854328,-500.0,0.00030136,7]
[326460091,1714939854338,-500.0,0.00030136,8]
[326460092,1714939854348,-500.0,0.00030136,9]
[326460093,1714939854357,-400.32572,0.00030136,10]
[326460094,1714939854367,-500.0,0.00030136,4]
[326460095,1714939854377,-500.0,0.00030136,4]
[326460096,1714939854386,-1125.34,0.00030136,4]
[326460097,1714939854396,-500.0,0.00030136,4]
[326460098,1714939854406,-500.0,0.00030136,4]
[326460099,1714939854416,-500.0,0.00030136,4]
[326460100,1714939854426,-1018.73,0.00030136,4]
[326460101,1714939854435,-500.0,0.00030136,4]
[326460102,1714939854444,-705.16,0.00030136,4]
[326460103,1714939854454,-496.87611773,0.00030136,4]
[326460104,1714939854463,-500.0,0.00030136,4]
[326460105,1714939854472,-500.0,0.00030136,4]
[326460106,1714939854481,-500.0,0.00030136,4]
[326460107,1714939854491,-500.0,0.00030136,4]
[326460108,1714939854500,-324.57889915,0.00030136,4]
[326460109,1714939854511,-599.96,0.00030136,4]
[326460110,1714939854520,-1320.28,0.00030136,4]
[326460111,1714939854530,-845.17,0.00030136,4]
[326460112,1714939854539,-1445.4,0.00030136,4]
[326460113,1714939854549,-1140.72,0.00030136,4]
[326460114,1714939854558,-503.22799289,0.00030136,4]
[326460115,1714939854567,-579.36,0.00030136,4]
[326460116,1714939854576,-500.0,0.00030136,4]
[326460117,1714939854585,-500.0,0.00030136,4]
[326460118,1714939854595,-500.0,0.00030136,4]
[326460119,1714939854604,-500.0,0.00030136,4]
[326460120,1714939854613,-927.82,0.00030136,4]
[326460121,1714939854622,-338.59957913,0.00030136,4]
[326460122,1714939854632,-2338.88,0.00030136,4]
[326460123,1714939854641,-500.0,0.00030136,4]
[326460124,1714939854650,-1831.2,0.00030136,4]
[326460125,1714939854659,-985.65,0.00030136,4]
[326460126,1714939854668,-500.0,0.00030136,4]
[326460127,1714939854677,-1287.8,0.00030136,4]
[326460128,1714939854686,-500.0,0.00030136,4]
[326460129,1714939854696,-538.04,0.00030136,4]
[326460130,1714939854705,-302.09131441,0.00030136,4]
[326460131,1714939854715,-1561.58,0.00030136,4]
[326460132,1714939854724,-764.47,0.00030136,4]
[326460133,1714939854733,-671.05,0.00030136,4]
[326460134,1714939854743,-505.75823939,0.00030136,4]
[326460135,1714939854752,-506.84234807,0.00030136,4]
[326460136,1714939854762,-500.0,0.00030136,4]
[326460137,1714939854771,-500.0,0.00030136,4]
[326460138,1714939854779,-500.0,0.00030136,4]
[326460139,1714939854789,-500.0,0.00030136,4]
[326460140,1714939854799,-500.0,0.00030136,4]
[326460141,1714939854808,-505.99408772,0.00030136,4]
[326460142,1714939854817,-500.0,0.00030136,4]
[326460143,1714939854826,-500.0,0.00030136,4]
[326460144,1714939854835,-2012.78,0.00030136,4]
[326460145,1714939854844,-843.73,0.00030136,4]
[326460146,1714939854854,-502.07665548,0.00030136,4]
[326460147,1714939854864,-500.0,0.00030136,4]
[326460148,1714939854873,-500.0,0.00030136,2]
[326460149,1714939854882,-2916.7,0.00030136,4]
[326460150,1714939854891,-500.0,0.00030136,4]
[326460151,1714939854900,-725.25,0.00030136,4]
[326460152,1714939854910,-506.88318395,0.00030136,4]
[326460153,1714939854919,-984.1,0.00030136,4]
[326460154,1714939854928,-2208.61,0.00030136,4]
[326460155,1714939854937,-500.0,0.00030136,4]
[326460156,1714939854946,-500.0,0.00030136,4]
[326460157,1714939854955,-500.0,0.00030136,4]
[326460158,1714939854965,-500.0,0.00030136,4]
[326460159,1714939854974,-500.0,0.00030136,4]
[326460160,1714939854983,-502.76725702,0.00030136,4]
[326460161,1714939854992,-500.0,0.00030136,4]
[326460162,1714939855001,-501.09970433,0.00030136,4]
[326460163,1714939855011,-500.0,0.00030136,4]
[326460164,1714939855021,-500.0,0.00030136,4]
[326460165,1714939855030,-1550.23,0.00030136,4]
[326460166,1714939855040,-1362.29,0.00030136,4]
[326460167,1714939855049,-1154.11,0.00030136,4]
[326460168,1714939855058,-502.4285641,0.00030136,4]
[326460169,1714939855067,-940.94,0.00030136,4]
[326460170,1714939855076,-2711.74,0.00030136,4]
[326460171,1714939855085,-503.14329458,0.00030136,4]
[326460172,1714939855094,-500.0,0.00030136,4]
[326460173,1714939855103,-500.0,0.00030136,4]
[326460174,1714939855113,-500.0,0.00030136,4]
[326460175,1714939855122,-500.0,0.00030136,4]
[326460176,1714939855213,-1067.11,0.00030136,4]
[326460177,1714939855223,-715.46,0.00030136,4]
[326460178,1714939855232,-500.0,0.00030136,4]
[326460179,1714939855242,-1268.18,0.00030136,4]
[326460180,1714939855251,-500.0,0.00030136,4]
[326460181,1714939855261,-500.0,0.00030136,4]
[326460182,1714939855270,-500.0,0.00030136,4]
[326460183,1714939855282,-500.0,0.00030136,4]
[326460184,1714939855291,-1070.48,0.00030136,4]
[326460185,1714939855300,-500.0,0.00030136,4]
[326460186,1714939855309,-503.08097729,0.00030136,4]
[326460187,1714939855318,-1830.63,0.00030136,4]
[326460188,1714939855327,-786.6,0.00030136,4]
[326460189,1714939855337,-2669.12,0.00030136,4]
[326460190,1714939855347,-500.0,0.00030136,4]
[326460191,1714939855356,-500.0,0.00030136,4]
[326460192,1714939855365,-500.0,0.00030136,4]
[326460193,1714939855374,-500.0,0.00030136,4]
[326460194,1714939855384,-500.0,0.00030136,4]
[326460195,1714939855392,-803.83,0.00030136,4]
[326460196,1714939855401,-671.28,0.00030136,4]
[326460197,1714939855410,-531.80102812,0.00030136,4]
[326460198,1714939855419,-2327.77,0.00030136,4]
[326460199,1714939855428,-1039.96,0.00030136,4]
[326460200,1714939855437,-500.0,0.00030136,4]
[326460201,1714939855447,-869.77,0.00030136,4]
[326460202,1714939855456,-2324.64,0.00030136,4]
[326460203,1714939855465,-1525.41,0.00030136,4]
[326460204,1714939855474,-1378.33,0.00030136,4]
[326460205,1714939855484,-2278.88,0.00030136,4]
[326460206,1714939855494,-501.27616412,0.00030136,4]
[326460207,1714939855504,-500.0,0.00030136,4]
[326460208,1714939855513,-503.18473231,0.00030136,4]
[326460209,1714939855522,-500.0,0.00030136,4]
[326460210,1714939855532,-500.0,0.00030136,4]
[326460211,1714939855542,-500.0,0.00030136,4]
[326460212,1714939855551,-514.86,0.00030136,4]
[326460213,1714939855561,-500.0,0.00030136,4]
[326460214,1714939855570,-500.0,0.00030136,4]
[326460215,1714939855579,-864.52,0.00030136,4]
[326460216,1714939855588,-818.24,0.00030136,4]
[326460217,1714939855597,-1661.98,0.00030136,4]
[326460218,1714939855606,-1592.78,0.00030136,4]
[326460219,1714939855616,-1192.88,0.00030136,4]
[326460220,1714939855625,-734.35,0.00030136,4]
[326460221,1714939855634,-20000.0,0.00030136,2]
[326460222,1714939855643,-477.50275186,0.00030136,4]
[326460223,1714939855652,-1029.09,0.00030136,4]
[326460224,1714939855661,-500.0,0.00030136,4]
[326460225,1714939855671,-518.24847792,0.00030136,4]
[326460226,1714939855679,-553.31,0.00030136,4]
[326460227,1714939855689,-547.95,0.00030136,4]
[326460228,1714939855698,-2785.72,0.00030136,4]
[326460229,1714939855707,-687.45,0.00030136,4]
[326460230,1714939855716,-500.0,0.00030136,4]
[326460231,1714939855727,-899.43,0.00030136,4]
[326460232,1714939855738,-500.0,0.00030136,4]
[326460233,1714939855749,-500.0,0.00030136,4]
[326460234,1714939855759,-500.0,0.00030136,4]
[326460235,1714939855768,-500.0,0.00030136,4]
[326460236,1714939855777,-1109.14,0.00030136,4]
[326460237,1714939855787,-500.0,0.00030136,4]
[326460238,1714939855796,-1816.85,0.00030136,4]
[326460239,1714939855805,-1673.61,0.00030136,4]
[326460240,1714939855814,-1772.96,0.00030136,4]
[326460241,1714939855823,-670.55,0.00030136,4]
[326460242,1714939855832,-1378.58,0.00030136,4]
[326460243,1714939855841,-1379.54,0.00030136,4]
[326460244,1714939855851,-705.63,0.00030136,4]
[326460245,1714939855859,-507.93031313,0.00030136,4]
[326460246,1714939855868,-500.0,0.00030136,4]
[326460247,1714939855877,-782.88,0.00030136,4]
[326460248,1714939855886,-5000.0,0.00030136,4]
[326460249,1714939855895,-1912.93,0.00030136,4]
[326460250,1714939855903,-1015.84,0.00030136,4]
[326460251,1714939855912,-578.0,0.00030136,4]
[326460252,1714939855920,-151.0,0.00030136,7]
[326460253,1714939855929,-151.0,0.00030136,7]
[326460254,1714939855938,-507.71142985,0.00030136,4]
[326460255,1714939855947,-151.0,0.00030136,7]
[326460256,1714939855955,-782.08,0.00030136,4]
[326460257,1714939855964,-527.02,0.00030136,4]
[326460258,1714939855972,-2543.61,0.00030136,4]
[326460259,1714939855981,-527.75187657,0.00030136,4]
[326460260,1714939855989,-500.0,0.00030136,4]
[326460261,1714939855998,-171.372256,0.00030136,7]
[326460262,1714939856007,-1431.08,0.00030136,4]
[326460263,1714939856017,-638.56,0.00030136,4]
[326460264,1714939856025,-551.51185796,0.00030136,4]
[326460265,1714939856034,-1470.88,0.00030136,4]
[326460266,1714939856043,-171.372256,0.00030136,7]
[326460267,1714939856052,-171.372256,0.00030136,7]
[326460268,1714939856060,-1322.07,0.00030136,4]
[326460269,1714939856069,-702.47,0.00030136,4]
[326460270,1714939856077,-1738.55,0.00030136,4]
[326460271,1714939856086,-1058.25,0.00030136,4]
[326460272,1714939856095,-500.0,0.00030136,4]
[326460273,1714939856103,-565.97,0.00030136,4]
[326460274,1714939856112,-340.98865061,0.00030136,4]
[326460275,1714939856121,-171.372256,0.00030136,7]
[326460276,1714939856129,-171.372256,0.00030136,7]
[326460277,1714939856138,-171.372256,0.00030136,7]
[326460278,1714939856148,-525.97376822,0.00030136,4]
[326460279,1714939856157,-500.0,0.00030136,4]
[326460280,1714939856166,-762.24,0.00030136,4]
[326460281,1714939856176,-1631.73,0.00030136,4]
[326460282,1714939856185,-1340.8,0.00030136,4]
[326460283,1714939856195,-500.0,0.00030136,4]
[326460284,1714939856206,-2697.92,0.00030136,4]
[326460285,1714939856216,-679.55,0.00030136,4]
[326460286,1714939856226,-648.37,0.00030136,4]
[326460287,1714939856235,-816.75,0.00030136,4]
[326460288,1714939856244,-500.0,0.00030136,4]
[326460289,1714939856255,-575.34,0.00030136,4]
[326460290,1714939856264,-500.0,0.00030136,4]
[326460291,1714939856273,-1108.53,0.00030136,4]
[326460292,1714939856285,-2110.68,0.00030136,4]
[326460293,1714939856294,-500.0,0.00030136,4]
[326460294,1714939856304,-3291.68,0.00030136,4]
[326460295,1714939856313,-1582.39,0.00030136,4]
[326460296,1714939856322,-1153.4,0.00030136,4]
[326460297,1714939856331,-500.0,0.00030136,4]
[326460298,1714939856340,-500.0,0.00030136,4]
[326460299,1714939856350,-500.0,0.00030136,4]
[326460300,1714939856359,-1288.2,0.00030136,4]
[326460301,1714939856369,-920.23,0.00030136,4]
[326460302,1714939856379,-500.0,0.00030136,4]
[326460303,1714939856388,-500.0,0.00030136,4]
[326460304,1714939856398,-1948.74,0.00030136,4]
[326460305,1714939856407,-2601.39,0.00030136,4]
[326460306,1714939856416,-628.64,0.00030136,4]
[326460307,1714939856426,-500.0,0.00030136,4]
[326460308,1714939856435,-1605.12,0.00030136,4]
[326460309,1714939856444,-1500.0,0.00030136,4]
[326460310,1714939856453,-500.0,0.00030136,4]
[326460311,1714939856462,-500.0,0.00030136,4]
[326460312,1714939856472,-791.15,0.00030136,4]
[326460313,1714939856482,-761.65,0.00030136,4]
[326460314,1714939856492,-527.88,0.00030136,4]
[326460315,1714939856502,-500.0,0.00030136,4]
[326460316,1714939856512,-543.55,0.00030136,4]
[326460317,1714939856522,-500.0,0.00030136,4]
[326460318,1714939856532,-499.45562817,0.00030136,4]
[326460319,1714939856542,-503.32443415,0.00030136,4]
[326460320,1714939856552,-706.67,0.00030136,4]
[326460321,1714939856562,-393.62914406,0.00030136,4]
[326460322,1714939856571,-3729.52,0.00030136,4]
[326460323,1714939856581,-644.03,0.00030136,4]
[326460324,1714939856591,-1163.71,0.00030136,4]
[326460325,1714939856600,-864.98,0.00030136,4]
[326460326,1714939856610,-512.66063173,0.00030136,4]
[326460327,1714939856619,-1442.96,0.00030136,4]
[326460328,1714939856629,-1277.38,0.00030136,4]
[326460329,1714939856638,-500.0,0.00030136,4]
[326460330,1714939856649,-871.54,0.00030136,4]
[326460331,1714939856659,-500.0,0.00030136,4]
[326460332,1714939856669,-812.74,0.00030136,4]
[326460333,1714939856679,-500.0,0.00030136,4]
[326460334,1714939856688,-943.73,0.00030136,4]
[326460335,1714939856697,-500.0,0.00030136,4]
[326460336,1714939856706,-500.0,0.00030136,4]
[326460337,1714939856716,-500.0,0.00030136,4]
[326460338,1714939856725,-1409.78,0.00030136,4]
[326460339,1714939856735,-500.0,0.00030136,4]
[326460340,1714939856744,-608.7,0.00030136,4]
[326460341,1714939856755,-500.0,0.00030136,4]
[326460342,1714939856764,-500.0,0.00030136,4]
[326460343,1714939856774,-500.0,0.00030136,4]
[326460344,1714939856783,-500.0,0.00030136,4]
[326460345,1714939856794,-770.34,0.00030136,4]
[326460346,1714939856804,-2013.03,0.00030136,4]
[326460347,1714939856814,-678.81,0.00030136,4]
[326460348,1714939856824,-1313.57,0.00030136,4]
[326460349,1714939856835,-2257.08,0.00030136,4]
[326460350,1714939856845,-812.54,0.00030136,4]
[326460351,1714939856855,-500.0,0.00030136,4]
[326460352,1714939856864,-581.54,0.00030136,4]
[326460353,1714939856876,-500.0,0.00030136,4]
[326460354,1714939856885,-1192.74,0.00030136,4]
[326460355,1714939856894,-1072.03,0.00030136,4]
[326460356,1714939856904,-880.8,0.00030136,4]
[326460357,1714939856914,-502.6331937,0.00030136,4]
[326460358,1714939856923,-500.0,0.00030136,4]
[326460359,1714939856932,-500.0,0.00030136,4]
[326460360,1714939856941,-500.0,0.00030136,4]
[326460361,1714939856951,-504.94892508,0.00030136,4]
[326460362,1714939856960,-1507.96,0.00030136,4]
[326460363,1714939856970,-500.0,0.00030136,4]
[326460364,1714939856981,-1677.02,0.00030136,4]
[326460365,1714939856991,-500.0,0.00030136,4]
[326460366,1714939857001,-500.0,0.00030136,4]
[326460367,1714939857011,-1310.8,0.00030136,4]
[326460368,1714939857020,-861.02,0.00030136,4]
[326460369,1714939857029,-1434.52,0.00030136,4]
[326460370,1714939857039,-1278.0,0.00030136,4]
[326460371,1714939857048,-503.00021545,0.00030136,4]
[326460372,1714939857058,-502.40039247,0.00030136,4]
[326460373,1714939857067,-500.0,0.00030136,4]
[326460374,1714939857076,-1309.71,0.00030136,4]
[326460375,1714939857085,-513.78439118,0.00030136,4]
[326460376,1714939857095,-500.0,0.00030136,4]
[326460377,1714939857104,-3093.85,0.00030136,2]
[326460378,1714939857113,-555.82,0.00030136,4]
[326460379,1714939857123,-758.19,0.00030136,4]
[326460380,1714939857132,-500.0,0.00030136,4]
[326460381,1714939857141,-500.0,0.00030136,4]
[326460382,1714939857151,-628.5,0.00030136,4]
[326460383,1714939857160,-683.82,0.00030136,4]
[326460384,1714939857170,-1883.01,0.00030136,4]
[326460385,1714939857179,-790.56,0.00030136,4]
[326460386,1714939857190,-1509.6,0.00030136,4]
[326460387,1714939857205,-500.0,0.00030136,4]
[326460388,1714939857214,-500.0,0.00030136,4]
[326460389,1714939857224,-201.63700255,0.00030136,4]
[326460390,1714939857233,-500.0,0.00030136,4]
[326460391,1714939857244,-595.36,0.00030136,4]
[326460392,1714939857253,-500.0,0.00030136,4]
[326460393,1714939857263,-683.58,0.00030136,4]
[326460394,1714939857273,-2203.48,0.00030136,4]
[326460395,1714939857284,-895.0,0.00030136,4]
[326460396,1714939857294,-500.0,0.00030136,4]
[326460397,1714939857303,-2817.08,0.00030136,4]
[326460398,1714939857313,-500.0,0.00030136,4]
[326460399,1714939857323,-1900.36,0.00030136,4]
[326460400,1714939857333,-500.0,0.00030136,4]
[326460401,1714939857343,-500.0,0.00030136,4]
[326460402,1714939857353,-1468.14,0.00030136,4]
[326460403,1714939857363,-500.0,0.00030136,4]
[326460404,1714939857373,-879.47,0.00030136,4]